Cogmind - Beta 11 X7 @@@ ROGUE MODE // 2021.08.30 @ 18:50:08 Player: LU-1G1 Result: Destroyed by G-34 Mercenary with Small Laser Performance ------------- Evolutions (1) 500 Regions Visited (3) 600 Robots Destroyed (4) 20 Value Destroyed (50) 50 Prototype IDs (0) 0 Alien Tech Used (0) 0 Bonus (221) 221 TOTAL SCORE: 1391 Bonus ------- Pacifist 200 Follower Combat Kills 21 Cogmind --------- Core Integrity 0/400 Matter 300/300 Energy 99/100 System Corruption 1% Temperature Cool (6) Movement Core (50) Location -9/Materials Parts ------- > --- POWER (1) -------- (None) > --- PROPULSION (3) --- (None) > --- UTILITY (3) ------ Visual Processing Unit Improved Targeting Computer > --- WEAPON (2) ------- (None) > --- INVENTORY (5) ---- Ion Engine Wheel Compact Wheel EM Pulse Gun Rocket Launcher Peak State ------------ > --- POWER ------------ (None) > --- PROPULSION ------- Improved Treads Improved Treads > --- UTILITY ---------- Visual Processing Unit Improved Targeting Computer > --- WEAPON ----------- Rocket Launcher > --- INVENTORY -------- Ion Engine Wheel Compact Wheel EM Pulse Gun [Rating: 10] Favorites ----------- Power Light Ion Engine Engine Light Ion Engine Propulsion Light Treads Treads Light Treads Leg Aluminum Leg Utility Small Storage Unit Storage Small Storage Unit Processor Visual Processing Unit Weapon Medium Laser Energy Gun Medium Laser Launcher Rocket Launcher Build | -11 -10 -10 -9 ------- Run | Scr Mat Min Mat Slots Evolved 2 | . . . 2 Power . | . . . . Propulsion 1 | . . . 1 Utility 1 | . . . 1 Weapon . | . . . . Parts Attached 7 | . 2 . 5 Power . | . . . . Engine . | . . . . Core . | . . . . Reactor . | . . . . Propulsion 4 | . 2 . 2 Treads 4 | . 2 . 2 Leg . | . . . . Wheel . | . . . . Hover . | . . . . Flight . | . . . . Utility 2 | . . . 2 Device . | . . . . Storage . | . . . . Processor 2 | . . . 2 Hackware . | . . . . Protection . | . . . . Artifact . | . . . . Weapon 1 | . . . 1 Energy Gun . | . . . . Energy Cannon . | . . . . Ballistic Gun . | . . . . Ballistic Cannon . | . . . . Launcher 1 | . . . 1 Special Weapon . | . . . . Impact Weapon . | . . . . Slashing Weapon . | . . . . Piercing Weapon . | . . . . Special Melee Weapon . | . . . . Unidentified Prototypes . | . . . . Parts Lost 6 | . 1 1 4 Power . | . . . . Propulsion 4 | . . . 4 Utility . | . . . . Weapon 2 | . 1 1 . Highest Loss Streak 2 | . 1 1 2 Average Slot Usage (%) 51 | . 77 38 38 Engine 3 | . 12 . . Treads 17 | . 4 28 18 Leg 7 | . 24 . . Storage 4 | . 13 . . Processor 6 | . . . 20 Energy Gun 11 | . 24 10 . Naked Turns . | . . . . Heaviest Build 12 | 12 12 2 . Greatest Support 23 | 20 20 3 23 Greatest Overweight (x) 2 | . 2 . . Average Overweight (x) . | . . . . Largest Inventory Capacity 8 | . 8 5 5 Average Capacity 5 | . 7 5 5 Most Carried 6 | . 6 5 5 Average Carried 4 | . 5 4 4 Final Capacity 8 | 8 5 5 5 Final Carried 6 | 6 4 5 5 Class Distribution -------------------- 100% | Mutant Dominant Class ---------------- Mutant | -10/Materials Mutant | -10/Mines Mutant | -9/Materials Resources | -11 -10 -10 -9 ----------- Run | Scr Mat Min Mat Matter Collected 209 | 192 . 8 9 Remotely . | . . . . Salvage Created 15 | . . . 15 Parts 7 | . . . 7 Haulers Intercepted . | . . . . Recyclers Shooed . | . . . . Parts Field Recycled . | . . . . Retrieved Matter . | . . . . Parts Self-Destructed . | . . . . Prevented . | . . . . Kills | -11 -10 -10 -9 ------- Run | Scr Mat Min Mat Combat Hostiles Destroyed 4 | . . . 4 AOE 4 | . . . 4 Classes Destroyed 1 | . . . 1 Swarmer 4 | . . . 4 Best Kill Streak 4 | . . . 4 Combat Bots Only 4 | . . . 4 Max Kills in Single Turn 4 | . . . 4 Gunslinging . | . . . . Exploded 4 | . . . 4 Melee . | . . . . Uniques/NPCs Destroyed . | . . . . Combat | -11 -10 -10 -9 -------- Run | Scr Mat Min Mat Damage Taken 1491 | . 505 127 859 Core 531 | . 90 33 408 Absorbed by Shields . | . . . . Core Remaining (%) 75 | 100 . 50 . Volleys Fired 1 | . . . 1 Largest 1 | . . . 1 Hottest 33 | . . . 33 Shots Fired 1 | . . . 1 Gun . | . . . . Cannon . | . . . . Launcher 1 | . . . 1 Special . | . . . . Kinetic . | . . . . Thermal . | . . . . Explosive 1 | . . . 1 Electromagnetic . | . . . . Robot Hit Streak . | . . . . Robot Miss Streak . | . . . . Penetration Max . | . . . . Secondary Targets . | . . . . Shots Hit Robots . | . . . . Core Hits 8 | . 1 . 7 Critical Kills . | . . . . Critical Parts Destroyed . | . . . . Critical Strikes . | . . . . Melee Attacks . | . . . . Impact . | . . . . Slashing . | . . . . Piercing . | . . . . Sneak Attacks . | . . . . Combat Hostiles . | . . . . Follow-up Attacks . | . . . . Damage Inflicted 282 | . 9 28 245 Guns . | . . . . Cannons . | . . . . Explosions 203 | . . . 203 Melee . | . . . . Ramming 79 | . 9 28 42 Kinetic . | . . . . Thermal . | . . . . Explosive 203 | . . . 203 Electromagnetic . | . . . . Impact . | . . . . Slashing . | . . . . Piercing . | . . . . Highest Corruption 1 | . . . 1 Average Corruption 1 | . . . 1 Corruption Purged . | . . . . Overload Shots . | . . . . Overflow Damage . | . . . . Projectiles . | . . . . Explosions . | . . . . Melee . | . . . . Knockbacks . | . . . . Impact . | . . . . Kinetic . | . . . . Secondary . | . . . . Self-Inflicted Damage 33 | . . 14 19 Shots . | . . . . Rammed 14 | . . 3 11 Targets Rammed 16 | . 2 3 11 Kicked 2 | . 2 . . Crushed . | . . . . Highest Temperature 14 | . 3 . 14 Average Temperature 6 | . 3 . 8 Received Heat Transfer 657 | . 282 . 375 Siege Activations . | . . . . Robots Corrupted . | . . . . Combat Hostiles . | . . . . Parts Fried . | . . . . Impact Corruptions . | . . . . Robots Melted . | . . . . Combat Hostiles . | . . . . Parts Melted . | . . . . Heat Transferred . | . . . . Parts Sabotaged . | . . . . Parts Stolen . | . . . . Parts Stripped . | . . . . Power Chain Reactions . | . . . . Missiles Intercepted . | . . . . Alert | -11 -10 -10 -9 ------- Run | Scr Mat Min Mat Peak Influence 335 | . 15 98 335 Initial 37 | . . 1 37 Average 68 | . 7 16 193 Maximum Alert Level 1 | . . . 1 Low Security (%) 85 | . 100 100 52 Level 1 14 | . . . 47 Level 2 . | . . . . Level 3 . | . . . . Level 4 . | . . . . Level 5 . | . . . . High Security . | . . . . Max Security . | . . . . Squads Dispatched 2 | . . . 2 Investigation 1 | . . . 1 Extermination . | . . . . Reinforcement 1 | . . . 1 Assault . | . . . . Garrison . | . . . . Intercept . | . . . . Construction Impeded . | . . . . Haulers Reinforced . | . . . . Active Scanning Responses . | . . . . Cargo Convoy Interrupts . | . . . . Stealth | -11 -10 -10 -9 --------- Run | Scr Mat Min Mat Distress Signals 1 | . . . 1 Communications Jammed . | . . . . Distress Signals . | . . . . Times Spotted 39 | . 5 5 29 Peak Tracking Total 15 | . 4 3 15 Tactical Retreats 5 | . . 2 3 Traps | -11 -10 -10 -9 ------- Run | Scr Mat Min Mat Traps Triggered 1 | . 1 . . Indirectly . | . . . . Trap Hack Attempts . | . . . . Triggered . | . . . . Disarmed . | . . . . Reprogrammed . | . . . . Reused . | . . . . Traps Extracted . | . . . . Installed . | . . . . Triggered . | . . . . Machines | -11 -10 -10 -9 ---------- Run | Scr Mat Min Mat Machines Disabled 1 | . . . 1 Max in Single Turn 1 | . . . 1 Machines Sabotaged . | . . . . Garrisons Compromised . | . . . . Overloaded Fab Kills . | . . . . Fab Network Shutdowns . | . . . . Hacking | -11 -10 -10 -9 --------- Run | Scr Mat Min Mat Machines Accessed 3 | . 1 . 2 Terminals 3 | . 1 . 2 Fabricators . | . . . . Repair Stations . | . . . . Recycling Units . | . . . . Scanalyzers . | . . . . Garrison Access . | . . . . Total Hacks 6 | . 3 . 3 Successful 2 | . 1 . 1 Failed 4 | . 2 . 2 Catastrophic 2 | . . . 2 Database Lockouts . | . . . . Manual 4 | . 3 . 1 Terminals 6 | . 3 . 3 Fabricators . | . . . . Repair Stations . | . . . . Recycling Units . | . . . . Scanalyzers . | . . . . Garrison Access . | . . . . Terminal Hacks 1 | . . . 1 Branch Access Points 1 | . . . 1 Fabricator Hacks . | . . . . Repair Station Hacks . | . . . . Recycling Unit Hacks . | . . . . Scanalyzer . | . . . . Garrison Access Hacks . | . . . . Unauthorized Hacks 1 | . 1 . . Terminals 1 | . 1 . . Botnet 1 | . 1 . . Fabricators . | . . . . Repair Stations . | . . . . Recycling Units . | . . . . Scanalyzers . | . . . . Garrison Access . | . . . . Data Cores Recovered . | . . . . Used . | . . . . Hacking Detections 2 | . 1 . 1 Full Trace Events 2 | . 1 . 1 Feedback Events . | . . . . Feedback Blocked . | . . . . Robot Schematics Acquired . | . . . . Robots Built . | . . . . Matter . | . . . . Time . | . . . . Total Robot Build Rating . | . . . . Part Schematics Acquired . | . . . . Parts Built . | . . . . Matter . | . . . . Time . | . . . . Total Part Build Rating . | . . . . Parts Repaired . | . . . . Time . | . . . . Parts Recycled . | . . . . Recycled Matter . | . . . . Retrieved Matter . | . . . . Retrieved Components . | . . . . Parts Scanalyzed . | . . . . Part Schematics Acquired . | . . . . Parts Damaged . | . . . . Bothacking | -11 -10 -10 -9 ------------ Run | Scr Mat Min Mat Used RIF Installer . | . . . . Robots Hacked . | . . . . Non-combat . | . . . . Combat . | . . . . Robot Hacks Applied . | . . . . Relay Couplers Released . | . . . . Robots Rewired . | . . . . Allies Hacked . | . . . . Hacks Repelled . | . . . . Allies | -11 -10 -10 -9 -------- Run | Scr Mat Min Mat Total Allies 3 | . . 3 . Largest Group 3 | . . 3 . Highest-Rated Group 40 | . . 40 . Highest-Rated Ally 16 | . . 16 . Total Orders . | . . . . Ally Attacks 8 | . . 8 . Total Damage 79 | . . 79 . Kills 3 | . . 3 . Allies Corrupted . | . . . . Allies Melted . | . . . . Intel | -11 -10 -10 -9 ------- Run | Scr Mat Min Mat Robot Analysis Total . | . . . . Derelict Logs Recovered 1 | . . 1 . Drone Launches . | . . . . Drone Recoveries . | . . . . Exploration | -11 -10 -10 -9 ------------- Run | Scr Mat Min Mat Turns Passed 443 | . 143 162 138 Spaces Moved 666 | 1 125 308 232 Core 566 | . 27 308 231 Treads 1 | . . . 1 Legs 99 | 1 98 . . Wheels . | . . . . Hover . | . . . . Flight . | . . . . Fastest Speed 50 | 120 50 50 50 Average Speed 61 | 120 110 50 50 Slowest Speed 160 | 120 150 50 160 Overloaded Moves . | . . . . Propulsion Burnouts . | . . . . Robots Hopped . | . . . . Cave-ins Triggered . | . . . . Exploration Rate (%) 36 | 2 34 78 30 Regions Visited 3 Branch Regions 1 Pre-discovered Areas . | . . . . Known Exits Taken . | . . . . Unknown Exits Taken 3 | 1 1 1 . Scrap Searched 1 | . . 1 . Spaces Dug . | . . . . Terrain Destroyed 4 | . . . 4 Melee . | . . . . Projectile . | . . . . AOE 4 | . . . 4 Terrain Rammed . | . . . . Walls Destroyed . | . . . . Machines Disabled . | . . . . Actions | -11 -10 -10 -9 --------- Run | Scr Mat Min Mat Total 694 | . 129 315 250 Wait 4 | . . 4 . Move 663 | . 124 307 232 Hop . | . . . . Pick Up 1 | . . 1 . Fast Attach 4 | . . . 4 Attach 3 | . 2 . 1 Detach 1 | . . . 1 Swap . | . . . . Drop 1 | . 1 . . Fire 1 | . . . 1 Melee . | . . . . Ram 14 | . . 3 11 Kick 2 | . 2 . . Crush . | . . . . Escape Stasis . | . . . . Rewire . | . . . . Trap . | . . . . Miscellaneous . | . . . . Route ------- -11/Scrapyard -10/Materials (discovered 2 exits: *Mat / [*Min]) -10/Mines -9/Materials (discovered 3 exits: [*Mat] / Min / Sto) History --------- Turn | Location | Event 1 | -11/Scrapyard | Discovered new exit (range 0) 1 | -11/Scrapyard | Entered Materials 99 | -10/Materials | Discovered new exit (range 15) 139 | -10/Materials | Discovered new exit (range 11) 144 | -10/Materials | Entered Mines 163 | -10/Mines | Learned Materials terminal intel 278 | -10/Mines | Assisted by bots powering up and referring to "LRC-V3" 293 | -10/Mines | Received a Rocket Launcher from a helpful Derelict 300 | -10/Mines | Discovered new exit (range 8) 306 | -10/Mines | Entered Materials 306 | -9/Materials | Evolved 2 slots: Propulsion x1, Utility x1 307 | -9/Materials | Build established: Mutant 307 | -9/Materials | Loaded intel: 12 terminal locations 375 | -9/Materials | Discovered new exit (range 18) 408 | -9/Materials | Identified exit to Mines 408 | -9/Materials | Identified exit to Storage 420 | -9/Materials | Core integrity fell below 50% 427 | -9/Materials | Core integrity fell below 20% 444 | -9/Materials | Destroyed by G-34 Mercenary with Small Laser Last Messages --------------- Found 2 branch access points: (86,12) Mines (79,75) Storage Map updated. 00410_ Imp. Treads destroyed. 00411_ Slammed into G-34 Mercenary. 00412_ Destabilizing: Core damaged (-4). 00415_ Imp. Treads destroyed. 00416_ Critical hit (Burn: +37). 00422_ Slammed into G-34 Mercenary. 00427_ K-01 Serf collects debris. 00437_ Slammed into G-34 Mercenary. 00439_ Visual Processing Unit permanently disabled. 00439_ Destabilizing: Short circuit. 00440_ Slammed into G-34 Mercenary. 00441_ Destabilizing: System interference. 00441_ Imp. Targeting Computer temporarily disabled. 00442_ Slammed into G-34 Mercenary. 00442_ Destabilizing: System corrupted (+1). 00443_ Slammed into G-34 Mercenary. Map ----- +----------------------------------------------------+ | | | ?????????????????????????????????????????????????? | | ?????????????????????????????????????????????????? | | ?????????????????????????????????????????????????? | | ?????????????????????????????????????????????????? | | ???????????????????????"?????????????????????????? | | #??????????????????????T?????????????????????????? | | #??????????????????????"?????????????????????????? | | #????????????????????????????????????????????????? | | #????????????#####???????????????????????????????? | | #????????????# #???????????????????????????????? | | #????????????# < #???????????????????????????????? | | #????????????# #?????###+###???????????????????? | | ############## ####### #???????????????????? | | #???????????????????? | | #???????????????????? | | ############## #???????????????????? | | ?????????????# ####### #???????????????????? | | ?????????????# #?????## ####???????????????????? | | ?????????????# #??????# #??????????????????????? | | ?????????????# #??????# #??????????????????????? | | ?????????????# #??????# #??????????????????????? | | ?????????????# #??????# #???????????#??????????? | | ?????????????# #????### ####### #??????????? | | ?????????????# #????# %g a ????????? | | ?????????????# #?? # @ ????????? | | ?????????????# # # ????????? | | ?????????????# + ###+####### ##?????????? | | ?????????????# # #?????????????###??????????? | | ?????????????# #?? #??????????????????????????? | | ?????????????# #????#?#???????????????"????????? | | ?????????##??# #???? #???????????????T????????? | | ?????????? ?# #??""" #???????????????"????????? | | ??????????? ?# # """" #????????????????????????? | | ??????????? # + """" #????????????????????????? | | ???????????? # # #???????? #??????????????? | | ?????????????+ #?? #???????? #??????????????? | | ?????????????# #????###???????? #??????????????? | | ?????????????# #??????????????? #??????????????? | | ?????????????# #??????????????? #????##########? | | ?????????????# #??????????????# #???## ! ! ## | | ?????????????# ################ #???# ! ! # | | ?????????????# #???## !! # | | ?????????????# #????#"" * | | ?????????????# #????#"" %*[ # | | ?????????????# ################ #????#"T %[ * | | ?????????????# #??????????????# #????#"" = # | | ?????????????# #??????????????# #????#"" " | | ?????????????# #?????????????## ##???# # | | ???"T"???????# #?????????????# ##########+#### | +----------------------------------------------------+ Best States ------------- Heat Dissipation 28 Energy Generation 10 Energy Capacity 125 Matter Stores 300 Matter Capacity 300 Sight Range 18 Terrain Scan Density 10 Evasion (%) 55 Targeting Accuracy 6 Recoil Reduction 2 Item Schematics ----------------- None Robot Schematics ------------------ None Fabricated ------------ Nothing Alien Tech Used ----------------- None Achievements -------------- None Challenges ------------ None Game ------ Seed ChainProcessingDevice Manual? 0 Play Time 00:04:49 Cumulative 416.3 hours Start 2021.08.30 @ 18:46:43 End 2021.08.30 @ 18:50:08 Sessions 1 Manual Loads 0 Difficulty Rogue Special Mode None Game No. 402 Rogue 187 Adventurer 112 Explorer 103 Win Type - Total 29 Types 21/0/5/2/0/0/0/1/0 Lore% 87 Gallery% 90 Achievement% 76 Wizard Run 0 Options --------- ASCII 0 Keyboard 0 Movement Numpad Keybinds 0 Fullscreen 1 Font 18/TerminusBold Map View 76x50 Tactical HUD 1 Map Filters NONE Filters NONE Steam 1 RUN: 40e9b368-e394-4b1a-9afa-7c71758ba809